bitfinex/quotes_BTCUSD_20220731
["timestamp","ask_amount","ask_price","bid_price","bid_amount"]
[1659291240926,0.03294395,24160.0,24157.0,0.03467316]
[1659291241153,0.04115272,24166.0,24165.0,1.05]
[1659291241154,2.72e-06,24166.0,24165.0,1.05]
[1659291241372,2.72e-06,24166.0,24165.0,1.75651133]
[1659291241594,2.72e-06,24166.0,24165.0,1.45651538]
[1659291241818,2.72e-06,24166.0,24165.0,1.49118854]
[1659291242570,2.72e-06,24166.0,24165.0,1.40725733]
[1659291242794,2.72e-06,24166.0,24165.0,0.40225733]
[1659291243229,2.72e-06,24166.0,24165.0,0.38225733]
[1659291243452,2.72e-06,24166.0,24165.0,0.36225733]
[1659291243731,2.72e-06,24166.0,24165.0,0.34225733]
[1659291244190,2.72e-06,24166.0,24165.0,0.44193049]
[1659291244653,0.15,24168.0,24165.0,0.74118449]
[1659291244654,0.1,24168.0,24165.0,0.74118449]
[1659291244892,0.1,24168.0,24167.0,1.25725733]
[1659291245131,0.04323551,24176.0,24172.0,0.05]
[1659291245360,0.002,24177.0,24175.0,0.40725733]
[1659291245583,0.002,24177.0,24176.0,0.70576938]
[1659291245821,0.020691,24183.0,24176.0,0.70576938]
[1659291245822,0.23845008,24184.0,24180.0,0.05]
[1659291246037,0.23845008,24184.0,24183.0,0.95725733]
[1659291246486,0.23455008,24184.0,24183.0,0.95725733]
[1659291247451,0.23455008,24184.0,24183.0,0.40725733]
[1659291247663,0.23455008,24184.0,24183.0,0.40651538]
[1659291248598,0.23455008,24184.0,24183.0,0.38710618]
[1659291248830,0.23455008,24184.0,24178.0,0.40725733]
[1659291249072,0.05,24182.0,24178.0,0.40725733]
[1659291249298,0.110346,24181.0,24167.0,0.84702702]
[1659291249538,0.110346,24181.0,24178.0,0.38668531]
[1659291249760,0.25020615,24180.0,24173.0,0.40725733]
[1659291250092,0.1,24178.0,24173.0,0.40725733]
[1659291250196,0.1,24176.0,24173.0,0.40725733]
[1659291250439,0.08405,24180.0,24179.0,0.05]
[1659291250684,0.08405,24180.0,24179.0,0.70569233]
[1659291251610,0.1,24182.0,24179.0,0.75569233]
[1659291251840,0.1,24182.0,24181.0,1.30725733]
[1659291252075,0.23455008,24184.0,24181.0,1.60569233]
[1659291252345,0.1,24187.0,24184.0,0.05]
[1659291252577,0.001,24189.0,24187.0,0.1]
[1659291252814,0.1,24193.0,24188.0,0.70569233]
[1659291253045,0.1,24193.0,24192.0,0.45725733]
[1659291253277,0.1,24193.0,24192.0,0.70569233]
[1659291253507,0.1,24193.0,24192.0,0.70713084]
[1659291253741,0.1,24193.0,24192.0,0.70569233]
[1659291253968,0.1,24193.0,24192.0,0.70495038]
[1659291254659,0.1,24193.0,24192.0,0.44118854]
[1659291254901,0.1,24193.0,24192.0,0.40651538]
[1659291255186,0.095,24193.0,24192.0,0.70495038]
[1659291255642,0.041354,24201.0,24192.0,0.298435]
[1659291255886,0.010342,24192.0,24187.0,0.078]
[1659291256118,0.010342,24192.0,24187.0,0.48525733]
[1659291256352,0.1678915,24193.0,24191.0,0.40725733]
[1659291256353,0.20524802,24193.0,24191.0,0.40725733]
[1659291256572,0.20524802,24193.0,24187.0,0.078]
[1659291256573,0.131021,24193.0,24192.0,0.40725733]
[1659291257749,0.131021,24193.0,24188.0,0.05]
[1659291257974,0.131021,24193.0,24189.0,0.40725733]
[1659291258220,0.172387,24193.0,24191.0,0.00185069]
[1659291258443,0.38503048,24193.0,24191.0,0.23871385]
[1659291258668,0.1,24194.0,24191.0,0.23871385]
[1659291258669,0.1,24194.0,24192.0,0.3]
[1659291258908,0.1,24194.0,24193.0,1.10725733]
[1659291259130,0.01262305,24201.0,24195.0,1.0]
[1659291259403,0.002,24202.0,24200.0,0.5]
[1659291259632,0.04607356,24201.0,24200.0,0.40725733]
[1659291259868,0.012336,24202.0,24200.0,0.40725733]
[1659291260125,0.03225149,24201.0,24198.0,0.5]
[1659291260366,0.03225149,24201.0,24199.0,0.40725733]
[1659291260592,0.03517698,24201.0,24195.0,0.49925805]
[1659291260821,0.03517698,24201.0,24193.0,0.49925805]
[1659291260822,0.1,24198.0,24193.0,0.49925805]
[1659291261065,0.1,24198.0,24195.0,0.40725733]
[1659291261281,0.1,24198.0,24197.0,0.40725733]
[1659291261509,0.13287536,24198.0,24197.0,0.40725733]
[1659291261966,0.15355136,24198.0,24195.0,0.40725733]
[1659291262198,0.15355136,24198.0,24195.0,0.40900009]
[1659291262419,0.20355136,24198.0,24195.0,0.40900009]
[1659291262644,0.15355136,24198.0,24196.0,0.90651538]
[1659291262981,0.14355136,24198.0,24197.0,0.40725733]
[1659291263228,0.14355136,24198.0,24195.0,0.00174276]
[1659291263229,0.45743097,24197.0,24195.0,0.00174276]
[1659291263694,0.46777097,24197.0,24189.0,0.05]
[1659291263967,0.010338,24196.0,24191.0,0.40725733]
[1659291264161,0.1,24193.0,24192.0,0.7]
[1659291264391,0.1,24193.0,24192.0,1.44118854]
[1659291264615,0.1,24193.0,24192.0,1.40495038]
[1659291264849,0.02253836,24196.0,24193.0,0.98]
[1659291265084,0.1,24198.0,24197.0,0.04991882]
[1659291265316,0.1,24198.0,24197.0,0.40725733]
[1659291265837,0.82012757,24211.0,24198.0,0.3]
[1659291266067,0.82012757,24211.0,24189.0,0.05]
[1659291266068,0.010337,24200.0,24194.0,0.40725733]
[1659291266310,0.40725733,24208.0,24194.0,0.40725733]
[1659291266311,0.051689,24202.0,24198.0,0.25]
[1659291266539,0.010337,24200.0,24199.0,0.40725733]
[1659291267498,0.067407,24200.0,24199.0,0.40725733]
[1659291267748,0.067407,24200.0,24197.0,0.40725733]
[1659291267749,0.010337,24199.0,24197.0,0.40725733]
[1659291267979,0.12298048,24200.0,24197.0,0.40725733]
[1659291268213,0.110337,24200.0,24199.0,0.05]
[1659291268442,0.060337,24200.0,24199.0,0.45725733]
[1659291268679,0.120674,24201.0,24199.0,0.45651538]
[1659291268915,0.1,24201.0,24200.0,0.80725733]
[1659291269900,1.0,24202.0,24200.0,1.30651538]
[1659291270139,1.0,24202.0,24201.0,1.54127034]
[1659291270371,1.06610542,24204.0,24201.0,1.54127034]
[1659291270649,0.06610542,24204.0,24203.0,0.45651538]
[1659291270875,0.06610542,24204.0,24203.0,0.40725733]
[1659291270876,0.05040542,24204.0,24203.0,0.40725733]
[1659291271122,0.010333,24208.0,24203.0,0.40725733]
[1659291271359,1.0,24204.0,24203.0,0.40725733]
[1659291271822,0.010334,24206.0,24203.0,0.40527085]
[1659291272067,1.0,24204.0,24202.0,0.03467316]
[1659291272303,0.67307,24206.0,24205.0,0.90725733]
[1659291272528,0.1,24208.0,24205.0,0.40725733]
[1659291272764,0.1,24208.0,24199.0,0.00191572]
[1659291272765,0.78674,24206.0,24199.0,0.00191572]
[1659291273243,0.010334,24207.0,24199.0,0.00191572]
[1659291273473,0.010334,24207.0,24200.0,0.40725733]
[1659291273709,0.0014839,24205.0,24200.0,0.40725733]
[1659291273946,0.031009,24204.0,24199.0,0.40917305]
[1659291274181,0.081009,24204.0,24199.0,0.40917305]
[1659291274450,0.1,24202.0,24199.0,0.40917305]
[1659291274686,0.010337,24201.0,24199.0,0.00117377]
[1659291275138,0.0014839,24200.0,24199.0,0.00117377]
[1659291275368,0.40725733,24200.0,24199.0,0.00117377]
[1659291275639,0.75725733,24200.0,24199.0,0.00117377]
[1659291275864,0.01,24196.0,24190.0,0.30170522]
[1659291276110,0.07238,24195.0,24191.0,0.40725733]
[1659291276339,0.22238,24195.0,24191.0,0.40725733]
[1659291276558,0.0014839,24194.0,24191.0,0.40725733]
[1659291276809,0.22238,24195.0,24190.0,0.00096327]
[1659291276810,0.0585539,24191.0,24190.0,0.00096327]
[1659291277038,0.46581123,24191.0,24190.0,0.00096327]
[1659291277266,0.03903673,24181.0,24180.0,0.3]
[1659291277506,0.1,24185.0,24181.0,0.03903]
[1659291277756,0.15,24185.0,24182.0,0.40725733]
[1659291278008,0.2,24185.0,24183.0,0.0485161]
[1659291278405,0.2,24185.0,24184.0,0.40725733]
[1659291278567,0.3,24190.0,24184.0,0.40725733]
[1659291278568,0.1,24190.0,24184.0,1.13053221]
[1659291278779,0.1,24190.0,24185.0,0.40725733]
[1659291279157,0.010341,24189.0,24186.0,0.04970384]
[1659291279400,0.010341,24189.0,24187.0,0.40725733]
[1659291279617,0.010341,24189.0,24185.0,0.40725733]
[1659291280078,0.010341,24189.0,24182.0,0.40725733]
[1659291280302,0.010341,24189.0,24183.0,0.44077343]
[1659291280516,0.010341,24189.0,24188.0,0.0335161]
[1659291280517,0.060341,24189.0,24188.0,0.0335161]
[1659291280816,0.060341,24189.0,24188.0,0.44077343]
[1659291281495,0.060341,24189.0,24188.0,0.40725733]
[1659291281708,0.060341,24189.0,24184.0,0.40725733]
[1659291281946,0.060341,24189.0,24183.0,0.052]
[1659291281947,0.122401,24187.0,24183.0,0.052]
[1659291282219,0.131029,24187.0,24183.0,0.052]
[1659291282427,0.14367248,24187.0,24183.0,0.052]
[1659291282662,0.14367248,24187.0,24184.0,0.44193049]
[1659291282868,0.120686,24187.0,24186.0,0.40725733]
[1659291283589,0.120686,24187.0,24186.0,0.38225733]
[1659291283809,0.120686,24187.0,24182.0,0.3]
[1659291283810,0.120686,24187.0,24182.0,0.40725733]
[1659291284050,0.120686,24187.0,24181.0,0.04088219]
[1659291284051,0.0164839,24184.0,24181.0,0.04088219]
[1659291284301,0.020691,24183.0,24181.0,0.00185219]
[1659291284497,0.070691,24183.0,24179.0,0.206791]
[1659291284775,0.010345,24182.0,24179.0,0.17604905]
[1659291285000,0.010345,24182.0,24180.0,0.40725733]
[1659291285227,0.010345,24182.0,24179.0,0.17604905]
[1659291285458,0.07019065,24180.0,24179.0,0.17604905]
[1659291285681,0.21409435,24180.0,24179.0,0.17104905]
[1659291285898,0.21409435,24180.0,24179.0,0.12956905]
[1659291285899,4.48552568,24180.0,24179.0,0.12956905]
[1659291286120,0.51159065,24176.0,24174.0,0.0399]
[1659291286358,0.77744798,24175.0,24174.0,0.0399]
[1659291286584,0.07019065,24172.0,24170.0,0.001]
[1659291286810,0.06312065,24172.0,24171.0,0.00035805]
[1659291287084,0.05900001,24172.0,24171.0,0.00035805]
[1659291287568,0.05900001,24172.0,24171.0,0.40761538]
[1659291287808,0.05900001,24172.0,24171.0,0.00035805]
[1659291288263,0.46625734,24172.0,24171.0,0.00035805]
[1659291288494,0.58896069,24172.0,24171.0,0.00035805]
[1659291288765,1.75305734,24172.0,24171.0,0.00035805]
[1659291289468,1.86900118,24172.0,24171.0,0.00035805]
[1659291289699,2.54069643,24172.0,24171.0,0.00035805]
[1659291289924,2.15357143,24172.0,24171.0,0.00035805]
[1659291290168,2.09398873,24172.0,24171.0,0.00035805]
[1659291290405,2.19897882,24172.0,24171.0,0.00035805]
[1659291290670,2.12369867,24172.0,24171.0,0.00035805]
[1659291290934,2.6306905,24172.0,24171.0,0.00035805]
[1659291291149,2.6306905,24172.0,24161.0,0.001]
[1659291291150,0.020708,24169.0,24161.0,0.001]
[1659291291382,0.27410665,24162.0,24161.0,0.001]
[1659291291594,1.65516398,24162.0,24161.0,0.001]
[1659291291832,1.95516398,24162.0,24161.0,0.001]
[1659291292314,2.11997532,24162.0,24161.0,0.001]
[1659291292584,2.11997532,24162.0,24149.0,0.001]
[1659291292585,0.16019065,24157.0,24149.0,0.001]
[1659291292792,0.67703068,24157.0,24149.0,0.001]
[1659291293029,0.44,24157.0,24149.0,0.001]
[1659291293229,0.84725733,24157.0,24149.0,0.001]
[1659291293457,0.91813451,24157.0,24149.0,0.301]
[1659291293688,1.36459656,24157.0,24149.0,0.001]
[1659291293906,1.31813451,24157.0,24149.0,0.001]
[1659291294125,1.71813451,24157.0,24149.0,0.001]
[1659291294580,0.16019065,24150.0,24149.0,0.001]
[1659291294850,0.16019065,24150.0,24140.0,0.2984]
[1659291294851,0.09,24149.0,24140.0,0.2984]
[1659291295138,0.01312065,24147.0,24141.0,0.40725733]
[1659291295347,0.09,24146.0,24141.0,0.40725733]
[1659291295566,0.07348165,24147.0,24141.0,0.40725733]
[1659291295567,0.010361,24142.0,24141.0,0.40725733]
[1659291295805,0.100361,24142.0,24141.0,0.44193049]
[1659291296020,0.041437,24153.0,24143.0,1.03687935]
[1659291296240,0.1,24149.0,24145.0,0.40725733]
[1659291296517,0.1,24149.0,24147.0,0.45696117]
[1659291296739,0.1,24149.0,24148.0,0.40725733]
[1659291297176,0.1,24149.0,24142.0,0.45696117]
[1659291297416,0.110359,24149.0,24143.0,0.40725733]
[1659291297659,0.282874,24149.0,24143.0,0.45696117]
[1659291297917,0.282874,24149.0,24144.0,0.40725733]
[1659291298134,0.031077,24146.0,24144.0,0.40725733]
[1659291298369,0.081077,24146.0,24144.0,0.40725733]
[1659291298579,0.081077,24146.0,24136.0,0.3]
[1659291298580,0.2321037,24146.0,24136.0,0.3]
[1659291298829,0.010361,24145.0,24139.0,0.75696117]
[1659291299059,0.010361,24145.0,24140.0,0.40725733]
[1659291299268,0.010361,24145.0,24142.0,0.03687935]
[1659291299493,0.010361,24144.0,24143.0,0.44193049]
[1659291299714,0.010361,24144.0,24143.0,0.40725733]
[1659291301814,0.010361,24144.0,24143.0,0.47880984]
[1659291302021,0.010361,24144.0,24143.0,0.77724484]
[1659291302255,0.213438,24149.0,24143.0,0.77724484]
[1659291302256,0.213438,24149.0,24148.0,0.63687935]
[1659291302506,0.141438,24149.0,24148.0,1.04413668]
[1659291302729,0.141438,24149.0,24148.0,0.40725733]
[1659291302945,0.172509,24149.0,24148.0,0.44413668]
[1659291303662,4.45362352,24157.0,24148.0,0.44413668]
[1659291303663,0.01241498,24162.0,24161.0,0.03687935]
[1659291303900,0.01241498,24162.0,24161.0,0.74413668]
[1659291303901,0.02276598,24162.0,24161.0,0.74413668]
[1659291304174,0.041,24166.0,24165.0,0.38687935]
[1659291304396,0.010351,24168.0,24165.0,0.90725733]
[1659291304397,0.04324839,24168.0,24165.0,0.90725733]
[1659291304637,0.03,24174.0,24169.0,0.58687935]
[1659291304871,0.031044,24173.0,24172.0,0.55]
[1659291305105,0.031044,24173.0,24172.0,0.99413668]
[1659291305330,0.010348,24173.0,24172.0,0.9518593]
[1659291305553,0.010348,24173.0,24172.0,1.28496746]
[1659291305775,0.010348,24173.0,24172.0,0.98653246]
[1659291305989,0.010348,24173.0,24172.0,1.33496746]
[1659291306481,0.010348,24173.0,24172.0,1.28496746]
[1659291306729,0.1,24175.0,24172.0,0.98653246]
[1659291306965,0.020692,24177.0,24175.0,0.55]
[1659291307197,0.020692,24177.0,24176.0,0.40725733]
[1659291307413,0.020692,24177.0,24176.0,0.39825733]
[1659291308619,0.020692,24177.0,24174.0,0.40725733]
[1659291308850,0.04368348,24177.0,24165.0,0.33067935]
[1659291309075,0.1,24169.0,24166.0,0.40725733]
[1659291309557,0.2,24169.0,24166.0,0.40725733]
[1659291309778,0.010349,24168.0,24166.0,0.40725733]
[1659291310472,0.010349,24168.0,24163.0,0.40725733]
[1659291310473,0.01264348,24167.0,24163.0,0.40725733]
[1659291310731,0.010349,24168.0,24167.0,0.38687935]
[1659291310732,0.310349,24168.0,24167.0,0.38687935]
[1659291310957,0.220699,24169.0,24168.0,0.68687935]
[1659291310958,0.1,24169.0,24168.0,0.68687935]
[1659291311190,0.1,24169.0,24168.0,1.09413668]
[1659291311660,0.1,24169.0,24168.0,1.03725733]
[1659291311944,0.1,24169.0,24167.0,0.40725733]
[1659291312206,0.010349,24174.0,24167.0,0.40725733]
[1659291312207,0.50995106,24181.0,24180.0,0.19970384]
[1659291312443,0.50995106,24181.0,24180.0,1.33569233]
[1659291312444,0.31547024,24181.0,24180.0,1.33569233]
[1659291312676,0.31547024,24181.0,24180.0,1.07036549]
[1659291312910,0.31547024,24181.0,24180.0,1.03569233]
[1659291313143,0.31547024,24181.0,24180.0,0.73725733]
[1659291313598,0.31547024,24181.0,24180.0,0.82193049]
[1659291313835,0.31547024,24181.0,24180.0,1.12036549]
[1659291314088,0.31547024,24181.0,24180.0,0.73725733]
[1659291314325,0.31547024,24181.0,24180.0,1.08569233]
[1659291314567,0.31547024,24181.0,24180.0,1.12036549]
[1659291314801,0.31547024,24181.0,24180.0,1.11962461]
[1659291315031,0.31547024,24181.0,24180.0,1.03495145]
[1659291315271,0.31547024,24181.0,24180.0,0.70725733]
[1659291315785,0.31547024,24181.0,24180.0,1.07049392]
[1659291316003,0.31547024,24181.0,24180.0,0.73205892]
[1659291316240,0.31547024,24181.0,24180.0,0.71205892]
[1659291316475,0.06547024,24181.0,24180.0,1.06049392]
[1659291316694,6.011e-05,24185.0,24184.0,0.07925912]
[1659291316927,6.011e-05,24185.0,24184.0,0.73421103]
[1659291317202,6.011e-05,24185.0,24184.0,0.70569233]
[1659291317422,6.011e-05,24185.0,24184.0,0.40725733]
[1659291317935,0.04143611,24185.0,24184.0,0.40725733]
[1659291318176,6.011e-05,24185.0,24184.0,0.39725733]
[1659291318413,6.011e-05,24185.0,24180.0,0.00142954]
[1659291318414,0.01270359,24185.0,24180.0,0.00142954]
[1659291318630,0.10173,24183.0,24180.0,0.00142954]
[1659291318849,0.10173,24183.0,24180.0,0.00068912]
[1659291318850,0.020692,24182.0,24180.0,0.00068912]
[1659291319085,0.03333548,24182.0,24180.0,0.00068912]
[1659291319325,0.03333548,24182.0,24176.0,0.40725733]
[1659291319592,1.10821335,24180.0,24167.0,0.0285187]
[1659291319829,1.10821335,24180.0,24170.0,0.40725733]
[1659291319830,0.1,24174.0,24170.0,0.40725733]
[1659291320060,0.15,24174.0,24171.0,0.03467316]
[1659291320301,0.15,24174.0,24172.0,0.75725733]
[1659291320302,0.010347,24173.0,24172.0,0.75725733]
[1659291320759,0.010347,24173.0,24172.0,0.75708932]
[1659291321429,0.010347,24173.0,24172.0,0.40725733]
[1659291321690,0.010347,24173.0,24172.0,0.43577603]
[1659291322600,0.010347,24173.0,24172.0,0.40725733]
[1659291322831,0.067417,24173.0,24172.0,0.40651695]
[1659291323079,0.310347,24173.0,24172.0,0.43503565]
[1659291323536,0.120695,24174.0,24172.0,0.76814381]
[1659291323772,0.120695,24174.0,24173.0,0.40725733]
[1659291323993,0.110346,24174.0,24173.0,0.40725733]
[1659291324211,0.131041,24174.0,24170.0,0.40725733]
[1659291324458,0.131041,24174.0,24170.0,0.38725733]
[1659291324943,0.181041,24174.0,24173.0,0.01431023]
[1659291325163,0.181041,24174.0,24173.0,0.42156756]
[1659291325393,0.181041,24174.0,24173.0,0.01431023]
[1659291326093,0.64417142,24174.0,24173.0,0.01431023]
[1659291326329,0.94417142,24174.0,24173.0,0.01431023]
[1659291326560,0.94417142,24174.0,24162.0,0.6204187]
[1659291326801,0.94417142,24174.0,24163.0,0.40725733]
[1659291326802,0.0214813,24168.0,24163.0,0.40725733]
[1659291327031,0.0214813,24168.0,24159.0,0.3]
[1659291327032,0.15,24165.0,24159.0,0.3]
[1659291327518,0.55725733,24165.0,24158.0,0.00025958]
[1659291327522,0.05,24164.0,24159.0,0.40725733]
[1659291327753,0.35,24164.0,24162.0,0.0285187]
[1659291327991,0.3,24163.0,24162.0,0.0285187]
[1659291328224,0.05,24163.0,24158.0,0.00163333]
[1659291328452,0.1,24163.0,24162.0,0.40725733]
[1659291328688,0.05,24163.0,24162.0,0.70495191]
[1659291328922,0.081054,24163.0,24162.0,0.70495191]
[1659291329136,0.131054,24163.0,24162.0,0.73347061]
[1659291329392,0.131054,24163.0,24162.0,0.70495191]
[1659291329614,0.131054,24163.0,24162.0,0.298435]
[1659291329849,0.031054,24163.0,24162.0,0.4]
[1659291330082,0.031054,24163.0,24162.0,1.13421103]
[1659291330300,0.031054,24163.0,24162.0,0.40725733]
[1659291330749,0.031054,24163.0,24161.0,0.40854786]
[1659291330994,0.081054,24163.0,24161.0,0.00129053]
[1659291331248,0.131054,24163.0,24161.0,0.00129053]
[1659291331464,0.141407,24163.0,24158.0,0.00025958]
[1659291331695,0.141407,24163.0,24159.0,0.40725733]
[1659291331696,0.101766,24161.0,24159.0,0.40725733]
[1659291331922,0.151766,24161.0,24160.0,0.298435]
[1659291332162,0.151766,24161.0,24160.0,0.73421103]
[1659291332649,0.151766,24161.0,24160.0,0.70569233]
[1659291332869,0.19501407,24161.0,24158.0,0.00025958]
[1659291333098,0.0214813,24160.0,24158.0,0.00025958]
[1659291333332,0.0164813,24159.0,24158.0,0.00025958]
[1659291333564,0.15707,24159.0,24158.0,0.00025958]
[1659291333793,0.05290001,24159.0,24158.0,0.00025958]
[1659291334537,0.00290001,24159.0,24158.0,0.03377828]
[1659291334784,0.00290001,24159.0,24158.0,0.44103561]
[1659291334785,0.03395901,24159.0,24158.0,0.44103561]
[1659291335068,0.03395901,24159.0,24158.0,0.00025958]
[1659291336206,0.08395901,24159.0,24158.0,0.00025958]
[1659291336439,0.69800034,24159.0,24158.0,0.00025958]
[1659291336678,0.71448164,24159.0,24158.0,0.00025958]
[1659291337388,0.697044,24159.0,24158.0,0.00492289]
[1659291337851,0.738468,24159.0,24158.0,0.00492289]
[1659291338597,1.24824706,24159.0,24158.0,0.00492289]
[1659291338870,1.64824706,24159.0,24158.0,0.00492289]
[1659291339558,0.45,24158.0,24150.0,0.00092289]
[1659291339793,0.122509,24156.0,24150.0,0.00092289]
[1659291340010,0.52797277,24156.0,24150.0,0.00092289]
[1659291340261,0.3,24155.0,24150.0,0.00092289]
[1659291340498,0.1,24153.0,24150.0,0.00092289]
[1659291340713,0.031069,24152.0,24150.0,0.298435]
[1659291340978,0.031069,24152.0,24147.0,0.3]
[1659291340979,0.041425,24152.0,24147.0,0.3]
[1659291341210,0.041425,24152.0,24150.0,0.00469436]
[1659291341211,0.051791,24151.0,24150.0,0.00469436]
[1659291341908,0.051791,24151.0,24150.0,0.26395436]
[1659291342130,0.051791,24151.0,24150.0,0.56238936]
[1659291342345,0.051791,24151.0,24150.0,0.29812936]
[1659291342573,0.051791,24151.0,24150.0,0.29738894]
[1659291342863,0.051791,24151.0,24149.0,0.298435]
[1659291343086,0.051791,24151.0,24149.0,0.40725733]
[1659291343314,0.112148,24151.0,24149.0,0.40725733]
[1659291343547,0.112148,24151.0,24150.0,0.00469347]
[1659291343770,0.10179,24151.0,24150.0,0.00469347]
[1659291344703,0.11443348,24151.0,24150.0,0.00469347]
[1659291344953,0.23376883,24151.0,24150.0,0.00469347]
[1659291345220,0.14734783,24151.0,24150.0,0.00469347]
[1659291345433,0.43470435,24151.0,24150.0,0.00469347]
[1659291345899,0.44734783,24151.0,24150.0,0.00469347]
[1659291346377,0.44734783,24151.0,24150.0,3.47e-06]
[1659291346378,1.32882145,24151.0,24150.0,3.47e-06]
[1659291346862,0.0164813,24147.0,24140.0,0.001]
[1659291346865,0.010361,24146.0,24140.0,0.001]
[1659291347096,0.0164813,24143.0,24140.0,0.001]
[1659291347327,0.072542,24144.0,24140.0,0.001]
[1659291347328,0.0164813,24141.0,24140.0,0.001]
[1659291347568,0.0268443,24141.0,24140.0,0.001]
[1659291347798,0.010363,24141.0,24140.0,0.001]
[1659291348021,0.010363,24141.0,24140.0,0.00092324]
[1659291348255,0.010363,24141.0,24140.0,0.0008324]
[1659291348256,0.117433,24141.0,24140.0,0.0008324]
[1659291348487,0.060363,24141.0,24140.0,0.0008324]
[1659291348766,0.151817,24141.0,24140.0,0.0008324]
[1659291349017,0.57555563,24141.0,24140.0,0.0008324]
[1659291349258,0.69857695,24141.0,24140.0,0.0008324]
[1659291349497,1.56991592,24141.0,24140.0,2.4e-06]
[1659291349738,1.56991592,24141.0,24137.0,0.001]
[1659291349739,0.0164813,24138.0,24137.0,0.001]
[1659291349982,1.37720603,24138.0,24137.0,0.001]
[1659291350227,1.86758919,24138.0,24137.0,0.001]
[1659291350446,1.93878919,24138.0,24137.0,0.001]
[1659291350703,0.0164813,24137.0,24126.0,0.001]
[1659291350927,0.8164813,24135.0,24126.0,0.001]
[1659291351156,0.0164813,24133.0,24132.0,0.0011]
[1659291351392,0.42373863,24133.0,24126.0,0.001]
[1659291351635,0.1164813,24130.0,24126.0,0.001]
[1659291351866,0.43836733,24129.0,24126.0,0.001]
[1659291352111,0.9164813,24127.0,24126.0,0.0009]
[1659291352343,0.9164813,24127.0,24114.0,0.3]
[1659291352344,0.6164813,24126.0,24114.0,0.3]
[1659291352608,0.1,24121.0,24116.0,0.0011]
[1659291352825,0.15,24121.0,24118.0,0.0335187]
[1659291353054,0.160369,24121.0,24119.0,0.298744]
[1659291353310,0.2699517,24121.0,24116.0,0.0011]
[1659291353537,0.210369,24121.0,24116.0,0.0011]
[1659291353784,0.40725733,24120.0,24116.0,0.0011]
[1659291354018,0.0164813,24117.0,24116.0,0.0011]
[1659291354235,0.70725733,24117.0,24116.0,0.0011]
[1659291354560,2.12108651,24117.0,24116.0,0.0011]
[1659291354665,2.18565079,24117.0,24116.0,0.0011]
[1659291354895,0.60989973,24116.0,24115.0,0.001]
[1659291355131,0.47982133,24116.0,24115.0,0.001]
[1659291355348,0.83212102,24116.0,24115.0,0.001]
[1659291355580,0.83212102,24116.0,24101.0,0.001]
[1659291355581,0.75,24115.0,24101.0,0.001]
[1659291355827,0.093403,24112.0,24103.0,0.40725733]
[1659291356058,0.15,24104.0,24101.0,0.5009334]
[1659291356290,0.05,24104.0,24103.0,0.19963724]
[1659291356534,0.010376,24110.0,24109.0,0.4899334]
[1659291356771,6e-06,24110.0,24109.0,0.7886774]
[1659291357016,0.010372,24114.0,24113.0,1.0399334]
[1659291357243,0.06431354,24121.0,24113.0,1.78060789]
[1659291357244,0.1,24119.0,24113.0,1.78060789]
[1659291357467,0.1,24119.0,24118.0,0.0199334]
[1659291357703,0.1,24119.0,24118.0,1.22593473]
[1659291358142,0.01244754,24121.0,24120.0,0.4199334]
[1659291358446,0.020739,24122.0,24121.0,0.5699334]
[1659291358672,0.11330102,24130.0,24121.0,0.5699334]
[1659291358673,7e-06,24126.0,24123.0,1.0199334]
[1659291358912,0.26111917,24133.0,24121.0,1.55600133]
[1659291358913,0.062192,24136.0,24135.0,0.0199334]
[1659291359147,0.04330665,24138.0,24135.0,0.42719073]
[1659291359377,0.141461,24139.0,24136.0,0.40725733]
[1659291359593,0.141461,24139.0,24137.0,0.298744]
[1659291359817,0.141461,24139.0,24138.0,0.70600133]
[1659291360059,0.141461,24139.0,24138.0,0.40725733]
[1659291360319,0.031087,24140.0,24139.0,0.76963724]
[1659291360543,0.05299385,24147.0,24139.0,0.76963724]
[1659291360544,0.9285,24150.0,24140.0,0.8199334]
[1659291360769,0.041451,24144.0,24141.0,0.40725733]
[1659291361003,0.143451,24144.0,24143.0,0.70725733]
[1659291361254,0.102,24144.0,24143.0,0.73534187]
[1659291361492,0.052,24144.0,24143.0,0.42719073]
[1659291361711,0.052,24144.0,24143.0,0.40725733]
[1659291363380,0.032,24144.0,24143.0,0.40632447]
[1659291363615,0.032,24144.0,24137.0,0.40725733]
[1659291363845,0.010361,24142.0,24138.0,0.298744]
[1659291364137,0.010361,24142.0,24139.0,0.70600133]
[1659291364366,0.010361,24142.0,24139.0,0.40725733]
[1659291364607,0.01264348,24141.0,24139.0,0.40725733]
[1659291364837,0.02300648,24141.0,24139.0,0.40725733]
[1659291365070,0.07300648,24141.0,24139.0,0.40725733]
[1659291365310,0.12300648,24141.0,24136.0,0.40725733]
[1659291365542,0.12300648,24141.0,24139.0,0.00400366]
[1659291365777,0.01264348,24140.0,24139.0,0.00400366]
[1659291366216,0.55,24139.0,24126.0,0.25762774]
[1659291366220,0.10471915,24139.0,24125.0,1.53040384]
[1659291366460,0.1,24134.0,24128.0,0.40725733]
[1659291366700,0.15,24134.0,24128.0,0.40725733]
[1659291367187,0.010364,24133.0,24128.0,0.40725733]
[1659291367409,0.05366627,24133.0,24128.0,0.40725733]
[1659291367628,0.01264348,24132.0,24128.0,0.40725733]
[1659291367861,0.062208,24131.0,24128.0,0.40725733]
[1659291368130,0.112208,24131.0,24123.0,0.40725733]
[1659291368359,0.110368,24128.0,24123.0,0.45696117]
[1659291368614,0.110368,24128.0,24123.0,0.40725733]
[1659291368859,0.17301148,24128.0,24123.0,0.40725733]
[1659291369085,0.062215,24127.0,24123.0,0.40725733]
[1659291369326,0.062215,24127.0,24120.0,0.2952]
[1659291369327,0.060369,24126.0,24120.0,0.2952]
[1659291369535,0.010369,24125.0,24121.0,0.40725733]
[1659291369770,0.13259518,24125.0,24121.0,0.40725733]
[1659291370035,0.02301248,24125.0,24121.0,0.40725733]
[1659291370251,0.32301248,24125.0,24121.0,0.40725733]
[1659291370488,0.02301248,24125.0,24121.0,0.40725733]
[1659291370733,0.01264348,24124.0,24119.0,0.0011]
[1659291370973,0.062226,24123.0,24119.0,0.0011]
[1659291371207,0.15,24122.0,24120.0,0.03467316]